[Event "EYCC Girls U16 2021"]
[Site "Tornelo"]
[Date "2021.10.15"]
[Round "9.2"]
[White "Kanyamarala, Trisha"]
[Black "Pipiras, Filipa Fortuna"]
[Result "1/2-1/2"]
[ECO "D05"]
[WhiteElo "2082"]
[BlackElo "1995"]
[Annotator "ChessBase"]
[PlyCount "139"]
[EventDate "2021.10.15"]
[EventType "swiss"]
[EventCountry "NET"]
[SourceTitle "playchess.com"]
[Source "ChessBase"]
[SourceQuality "1"]
[TimeControl "5400+30"]

1. d4 {[%emt 0:00:30]} d5 {[%emt 0:01:18]} 2. Nf3 {[%emt 0:00:10]} Nf6 {[%emt 0:00:37]} 3. e3 {[%emt 0:00:23]} e6 {[%emt 0:02:27]} 4. Bd3 {[%emt 0:00:25]} c5 {[%emt 0:00:45]} 5. b3 {[%emt 0:02:11]} Nc6 {[%emt 0:02:29]} 6. O-O {[%emt 0:03:39]} Bd6 {[%emt 0:06:35]} 7. Bb2 {[%emt 0:01:57]} O-O {[%emt 0:00:37]} 8. Nbd2 {[%emt 0:01:51]} b6 {[%emt 0:02:59]} 9. a3 {[%emt 0:01:38]} Bb7 {[%emt 0:04:47]} 10. c4 {[%emt 0:03:37]} Rc8 {[%emt 0:08:35]} 11. Re1 {[%emt 0:08:42]} Bb8 {[%emt 0:05:20]} 12. Rc1 {[%emt 0:03:27]} Qe7 {[%emt 0:07:03]} 13. Qc2 {[%emt 0:09:16]} cxd4 {[%emt 0:03:29]} 14. exd4 {[%emt 0:01:47]} h6 {[%emt 0:01:20]} 15. Qd1 {[%emt 0:02:37]} Rfd8 {[%emt 0:06:55]} 16. Bb1 {[%emt 0:05:05]} a5 {[%emt 0:02:38]} 17. Nf1 {[%emt 0:12:53]} a4 {[%emt 0:15:02]} 18. Ne3 {[%emt 0:01:59]} axb3 {[%emt 0:02:58]} 19. cxd5 {[%emt 0:00:39]} Nxd5 {[%emt 0:00:16]} 20. Nxd5 {[%emt 0:02:25]} Rxd5 {[%emt 0:00:19]} 21. Qxb3 {[%emt 0:01:11]} Rdd8 {[%emt 0:05:49]} 22. Qd3 {[%emt 0:01:49]} g6 {[%emt 0:01:05]} 23. Qe3 {[%emt 0:06:18]} Kh7 {[%emt 0:00:46]} 24. h4 {[%emt 0:03:47]} h5 {[%emt 0:04:18]} 25. Ng5+ {[%emt 0:02:47]} Kg8 {[%emt 0:00:21]} 26. Ne4 {[%emt 0:09:28]} e5 {[%emt 0:05:27]} 27. d5 {[%emt 0:04:38]} Rxd5 {[%emt 0:03:10]} 28. Qh6 {[%emt 0:02:52]} Rb5 {[%emt 0:01:41]} 29. Ng5 {[%emt 0:00:46]} Qf6 {[%emt 0:00:46]} 30. Ba2 {[%emt 0:02:32]} Rc7 {[%emt 0:03:29]} 31. Ne4 {[%emt 0:03:25]} Qg7 {[%emt 0:01:03]} 32. Qd2 {[%emt 0:00:26]} Rc8 {[%emt 0:00:57]} 33. Ng5 {[%emt 0:00:45]} Rc7 {[%emt 0:00:43]} 34. Qe2 {[%emt 0:00:41]} Rc5 {[%emt 0:00:31]} 35. Rcd1 {[%emt 0:00:28]} Qf6 {[%emt 0:00:25]} 36. Ne4 {[%emt 0:00:14]} Qxh4 {[%emt 0:00:26]} 37. Nxc5 {[%emt 0:00:14]} bxc5 {[%emt 0:00:08]} 38. Bd5 {[%emt 0:00:48]} Rc8 {[%emt 0:01:05]} 39. Qf3 {[%emt 0:00:36]} Qe7 {[%emt 0:00:41]} 40. Qg3 {[%emt 0:00:19]} Qf6 {[%emt 0:00:32]} 41. Qf3 {[%emt 0:00:59]} Qe7 {[%emt 0:00:24]} 42. Qe3 {[%emt 0:00:34]} Kh7 {[%emt 0:00:37]} 43. Bc1 {[%emt 0:00:18]} Kg8 {[%emt 0:00:28]} 44. Qg3 {[%emt 0:00:20]} Qf6 {[%emt 0:00:31]} 45. Bg5 {[%emt 0:00:11]} Qf5 {[%emt 0:00:15]} 46. Be3 {[%emt 0:00:42]} e4 {[%emt 0:00:38]} 47. Qg5 {[%emt 0:00:15]} Qxg5 {[%emt 0:00:20]} 48. Bxg5 {[%emt 0:00:06]} Be5 {[%emt 0:00:20]} 49. Rxe4 {[%emt 0:00:18]} Bd4 {[%emt 0:00:22]} 50. Rf4 {[%emt 0:00:35]} Rc7 {[%emt 0:00:12]} 51. Rc1 {[%emt 0:00:50]} Kg7 {[%emt 0:00:30]} 52. Re4 {[%emt 0:00:38]} Rd7 {[%emt 0:00:23]} 53. Bxc6 {[%emt 0:00:50]} Bxc6 {[%emt 0:00:06]} 54. Ree1 {[%emt 0:00:23]} Ra7 {[%emt 0:00:12]} 55. Be3 {[%emt 0:00:21]} Bd5 {[%emt 0:00:19]} 56. Bxd4+ {[%emt 0:00:47]} cxd4 {[%emt 0:00:07]} 57. Rcd1 {[%emt 0:00:35]} Rxa3 {[%emt 0:00:11]} 58. Rxd4 {[%emt 0:00:08]} Be6 {[%emt 0:00:09]} 59. Rde4 {[%emt 0:00:23]} Bf5 {[%emt 0:00:23]} 60. R4e3 {[%emt 0:00:17]} Ra4 {[%emt 0:00:09]} 61. Rc1 {[%emt 0:00:36]} Ra6 {[%emt 0:00:26]} 62. Re7 {[%emt 0:00:18]} Kf6 {[%emt 0:00:22]} 63. Rec7 {[%emt 0:00:24]} Be6 {[%emt 0:00:07]} 64. R1c3 {[%emt 0:00:38]} Ra1+ {[%emt 0:00:18]} 65. Rc1 {[%emt 0:00:38]} Ra6 {[%emt 0:00:10]} 66. Kh2 {[%emt 0:00:19]} Rb6 {[%emt 0:00:21]} 67. R7c3 {[%emt 0:00:44]} Rb2 {[%emt 0:00:17]} 68. R1c2 {[%emt 0:00:32]} Rb7 {[%emt 0:00:49]} 69. Rf3+ {[%emt 0:00:24]} Bf5 {[%emt 0:00:20]} 70. Rc1 {[%emt 0:00:37]} 1/2-1/2

[Event "EYCC Girls U16 2021"]
[Site "Tornelo"]
[Date "2021.10.15"]
[Round "9.3"]
[White "Tsotsonava, Elene"]
[Black "Shpakivskaya, Alina"]
[Result "1-0"]
[ECO "C03"]
[WhiteElo "1887"]
[BlackElo "1875"]
[Annotator "NA"]
[PlyCount "85"]
[EventDate "2021.10.15"]
[EventType "swiss"]
[EventCountry "NET"]
[SourceTitle "playchess.com"]
[Source "ChessBase"]
[SourceQuality "1"]
[TimeControl "5400+30"]

1. e4 {[%emt 0:00:30]} e6 {[%emt 0:00:44]} 2. d4 {[%emt 0:00:07]} d5 {[%emt 0:00:04]} 3. Nd2 {[%emt 0:00:05]} Be7 {[%emt 0:00:04]} 4. Bd3 {[%emt 0:08:01]} c5 {[%emt 0:00:27]} 5. dxc5 {[%emt 0:04:00]} Bxc5 {[%emt 0:03:51]} 6. Ngf3 {[%emt 0:01:18]} Nf6 {[%emt 0:01:29]} 7. Qe2 {[%emt 0:02:29]} O-O {[%emt 0:02:03]} 8. O-O {[%emt 0:01:39]} Nc6 {[%emt 0:06:28]} 9. c3 {[%emt 0:06:03]} a6 {[%emt 0:04:22]} 10. a4 {[%emt 0:06:24]} b6 {[%emt 0:06:31]} 11. h4 {[%emt 0:09:56]} h6 {[%emt 0:04:05]} 12. Bc2 {[%emt 0:03:43]} a5 {[%emt 0:06:36]} 13. Bd3 {[%emt 0:08:05]} Bb7 {[%emt 0:03:12]} 14. e5 {[%emt 0:00:17]} Nd7 {[%emt 0:01:38]} 15. Re1 {[%emt 0:00:29]} Be7 {[%emt 0:06:28]} 16. Nf1 {[%emt 0:04:29]} Bxh4 {[%emt 0:04:41]} 17. Bb1 {[%emt 0:01:54]} Re8 {[%emt 0:02:07]} 18. Qc2 {[%emt 0:03:50]} Nf8 {[%emt 0:00:53]} 19. Be3 {[%emt 0:02:20]} Be7 {[%emt 0:03:58]} 20. Ba2 {[%emt 0:06:33]} Bc5 {[%emt 0:03:05]} 21. Rad1 {[%emt 0:00:55]} Qc7 {[%emt 0:02:35]} 22. Bb1 {[%emt 0:03:48]} Ne7 {[%emt 0:08:24]} 23. Bc1 {[%emt 0:04:07]} Rec8 {[%emt 0:05:06]} 24. Ng3 {[%emt 0:02:24]} Neg6 {[%emt 0:02:32]} 25. Nh5 {[%emt 0:01:06]} Be7 {[%emt 0:02:50]} 26. Rd4 {[%emt 0:01:58]} Qd7 {[%emt 0:03:37]} 27. Nh2 {[%emt 0:03:54]} Rc4 {[%emt 0:01:23]} 28. Ng4 {[%emt 0:05:43]} Rxd4 {[%emt 0:01:19]} 29. cxd4 {[%emt 0:00:06]} Qc6 {[%emt 0:03:09]} 30. Qd3 {[%emt 0:02:25]} Qc4 {[%emt 0:06:42]} 31. Qe3 {[%emt 0:04:24]} Bg5 {[%emt 0:00:04]} 32. f4 {[%emt 0:00:17]} Bh4 {[%emt 0:00:13]} 33. g3 {[%emt 0:00:48]} Be7 {[%emt 0:00:15]} 34. b3 {[%emt 0:00:08]} Qc6 {[%emt 0:01:04]} 35. Qf3 {[%emt 0:01:21]} Bb4 {[%emt 0:02:44]} 36. Rf1 {[%emt 0:01:07]} Ba6 {[%emt 0:00:46]} 37. f5 {[%emt 0:00:53]} exf5 {[%emt 0:01:19]} 38. Nxh6+ {[%emt 0:00:52]} gxh6 {[%emt 0:01:07]} 39. Nf6+ {[%emt 0:00:03]} Kg7 {[%emt 0:00:55]} 40. Bxf5 {[%emt 0:01:08]} Bxf1 {[%emt 0:00:50]} 41. Qe3 {[%emt 0:00:04]} Nh7 {[%emt 0:00:40]} 42. Qxh6+ {[%emt 0:00:10]} Kh8 {[%emt 0:00:05]} 43. Qxh7# {[%emt 0:00:02]} 1-0

[Event "EYCC Girls U16 2021"]
[Site "Tornelo"]
[Date "2021.10.15"]
[Round "9.4"]
[White "Hakobyan, Astghik"]
[Black "Follana Albelda, Lucia"]
[Result "1-0"]
[ECO "B53"]
[WhiteElo "2017"]
[BlackElo "1904"]
[Annotator "NA"]
[PlyCount "87"]
[EventDate "2021.10.15"]
[EventType "swiss"]
[EventCountry "NET"]
[SourceTitle "playchess.com"]
[Source "ChessBase"]
[SourceQuality "1"]
[TimeControl "5400+30"]

1. e4 {[%emt 0:00:30]} c5 {[%emt 0:01:01]} 2. Nf3 {[%emt 0:00:09]} d6 {[%emt 0:00:29]} 3. d4 {[%emt 0:00:06]} cxd4 {[%emt 0:00:29]} 4. Qxd4 {[%emt 0:00:04]} Nc6 {[%emt 0:00:46]} 5. Qe3 {[%emt 0:00:04]} Nf6 {[%emt 0:08:38]} 6. Be2 {[%emt 0:00:48]} e6 {[%emt 0:03:42]} 7. O-O {[%emt 0:00:11]} Be7 {[%emt 0:01:01]} 8. h3 {[%emt 0:02:27]} d5 {[%emt 0:02:23]} 9. exd5 {[%emt 0:05:22]} Nxd5 {[%emt 0:01:06]} 10. Qb3 {[%emt 0:01:00]} O-O {[%emt 0:00:57]} 11. c4 {[%emt 0:04:24]} Ndb4 {[%emt 0:08:41]} 12. Rd1 {[%emt 0:03:39]} Qc7 {[%emt 0:03:52]} 13. a3 {[%emt 0:06:03]} Na6 {[%emt 0:02:12]} 14. Nc3 {[%emt 0:01:26]} e5 {[%emt 0:10:05]} 15. Nd5 {[%emt 0:02:47]} Qb8 {[%emt 0:02:17]} 16. Qc3 {[%emt 0:21:49]} Bc5 {[%emt 0:08:38]} 17. Be3 {[%emt 0:11:31]} e4 {[%emt 0:05:48]} 18. Nd4 {[%emt 0:05:16]} Nxd4 {[%emt 0:01:02]} 19. Bxd4 {[%emt 0:00:06]} Bxd4 {[%emt 0:00:37]} 20. Qxd4 {[%emt 0:00:31]} Re8 {[%emt 0:00:42]} 21. b4 {[%emt 0:01:20]} Bf5 {[%emt 0:02:11]} 22. c5 {[%emt 0:06:57]} Nc7 {[%emt 0:01:17]} 23. Ne3 {[%emt 0:00:03]} Bg6 {[%emt 0:01:28]} 24. Nc4 {[%emt 0:01:32]} Nb5 {[%emt 0:04:23]} 25. Qe3 {[%emt 0:03:12]} Rf8 {[%emt 0:02:37]} 26. a4 {[%emt 0:02:31]} Nc7 {[%emt 0:00:27]} 27. Ne5 {[%emt 0:00:33]} Re8 {[%emt 0:01:16]} 28. Nxg6 {[%emt 0:02:01]} hxg6 {[%emt 0:00:26]} 29. Rd7 {[%emt 0:00:09]} Ne6 {[%emt 0:01:52]} 30. Bc4 {[%emt 0:00:29]} Qe5 {[%emt 0:02:07]} 31. Rad1 {[%emt 0:00:25]} Rab8 {[%emt 0:00:40]} 32. Bd5 {[%emt 0:02:32]} Nd8 {[%emt 0:02:49]} 33. b5 {[%emt 0:02:47]} Kh8 {[%emt 0:03:16]} 34. Bxf7 {[%emt 0:03:21]} Rf8 {[%emt 0:00:08]} 35. Bxg6 {[%emt 0:01:04]} Ne6 {[%emt 0:00:57]} 36. R7d5 {[%emt 0:00:11]} Qb2 {[%emt 0:01:10]} 37. Rh5+ {[%emt 0:00:57]} Kg8 {[%emt 0:00:13]} 38. Bh7+ {[%emt 0:00:20]} Kf7 {[%emt 0:00:14]} 39. Qxe4 {[%emt 0:00:44]} Ke7 {[%emt 0:00:26]} 40. Bf5 {[%emt 0:01:00]} Rf6 {[%emt 0:00:12]} 41. Rd6 {[%emt 0:01:05]} Qa1+ {[%emt 0:00:27]} 42. Kh2 {[%emt 0:00:04]} Qa2 {[%emt 0:00:07]} 43. Rxe6+ {[%emt 0:00:17]} Rxe6 {[%emt 0:00:27]} 44. Bxe6 {[%emt 0:00:02]} 1-0

[Event "EYCC Girls U16 2021"]
[Site "Tornelo"]
[Date "2021.10.15"]
[Round "9.5"]
[White "Tokmakova, Ulyana"]
[Black "Kara, Gulce Nehir"]
[Result "0-1"]
[ECO "B44"]
[WhiteElo "1977"]
[BlackElo "1766"]
[Annotator "ChessBase"]
[PlyCount "154"]
[EventDate "2021.10.15"]
[EventType "swiss"]
[EventCountry "NET"]
[SourceTitle "playchess.com"]
[Source "ChessBase"]
[SourceQuality "1"]
[TimeControl "5400+30"]

1. c4 {[%emt 0:00:30]} Nf6 {[%emt 0:00:38]} 2. Nc3 {[%emt 0:00:05]} e6 {[%emt 0:00:05]} 3. e4 {[%emt 0:00:12]} c5 {[%emt 0:00:06]} 4. Nf3 {[%emt 0:03:17]} Nc6 {[%emt 0:00:08]} 5. d4 {[%emt 0:02:47]} cxd4 {[%emt 0:00:08]} 6. Nxd4 {[%emt 0:00:03]} Bb4 {[%emt 0:00:09]} 7. Nxc6 {[%emt 0:02:04]} bxc6 {[%emt 0:00:08]} 8. Bd3 {[%emt 0:01:29]} e5 {[%emt 0:00:18]} 9. O-O {[%emt 0:01:33]} O-O {[%emt 0:00:17]} 10. Bg5 {[%emt 0:04:19]} h6 {[%emt 0:00:24]} 11. Bh4 {[%emt 0:00:36]} Bc5 {[%emt 0:00:32]} 12. Qc2 {[%emt 0:05:37]} g5 {[%emt 0:05:57]} 13. Bg3 {[%emt 0:00:52]} d6 {[%emt 0:02:25]} 14. Be2 {[%emt 0:06:09]} Be6 {[%emt 0:15:06]} 15. Rad1 {[%emt 0:06:11]} Qe7 {[%emt 0:05:52]} 16. Kh1 {[%emt 0:06:48]} Rab8 {[%emt 0:08:26]} 17. b3 {[%emt 0:01:51]} Bd4 {[%emt 0:05:23]} 18. f3 {[%emt 0:02:27]} Nh5 {[%emt 0:10:53]} 19. Be1 {[%emt 0:01:19]} Nf4 {[%emt 0:02:03]} 20. g3 {[%emt 0:04:48]} Ng6 {[%emt 0:03:22]} 21. f4 {[%emt 0:08:38]} Bh3 {[%emt 0:08:26]} 22. Rf3 {[%emt 0:00:43]} g4 {[%emt 0:00:48]} 23. Rfd3 {[%emt 0:07:12]} Bxc3 {[%emt 0:03:33]} 24. Bxc3 {[%emt 0:08:22]} exf4 {[%emt 0:00:35]} 25. R3d2 {[%emt 0:09:08]} f3 {[%emt 0:06:10]} 26. Bd3 {[%emt 0:00:44]} Ne5 {[%emt 0:03:30]} 27. Bxe5 {[%emt 0:04:10]} Bg2+ {[%emt 0:03:02]} 28. Kg1 {[%emt 0:02:40]} Qxe5 {[%emt 0:03:59]} 29. Qb2 {[%emt 0:01:02]} Qc5+ {[%emt 0:04:34]} 30. Rf2 {[%emt 0:00:04]} Rfe8 {[%emt 0:01:01]} 31. Qf6 {[%emt 0:04:27]} Re6 {[%emt 0:00:34]} 32. Qf5 {[%emt 0:02:13]} Qxf5 {[%emt 0:00:37]} 33. exf5 {[%emt 0:00:03]} Re5 {[%emt 0:00:40]} 34. Rc2 {[%emt 0:01:33]} Rbe8 {[%emt 0:02:45]} 35. Kf2 {[%emt 0:00:27]} a5 {[%emt 0:01:46]} 36. a3 {[%emt 0:01:03]} c5 {[%emt 0:01:05]} 37. Rb1 {[%emt 0:01:47]} d5 {[%emt 0:00:31]} 38. cxd5 {[%emt 0:00:28]} Rxd5 {[%emt 0:00:05]} 39. Bc4 {[%emt 0:00:31]} Rxf5 {[%emt 0:00:52]} 40. b4 {[%emt 0:00:21]} axb4 {[%emt 0:01:00]} 41. axb4 {[%emt 0:00:02]} cxb4 {[%emt 0:00:02]} 42. Rxb4 {[%emt 0:00:04]} Rfe5 {[%emt 0:02:11]} 43. Bb5 {[%emt 0:02:07]} Re4 {[%emt 0:00:34]} 44. Rxe4 {[%emt 0:00:46]} Rxe4 {[%emt 0:00:03]} 45. Bd3 {[%emt 0:00:33]} Ra4 {[%emt 0:01:21]} 46. Ke3 {[%emt 0:00:27]} Kg7 {[%emt 0:00:26]} 47. Rc4 {[%emt 0:00:54]} Ra3 {[%emt 0:00:52]} 48. Rxg4+ {[%emt 0:00:11]} Kf8 {[%emt 0:00:06]} 49. Rd4 {[%emt 0:00:34]} Bf1 {[%emt 0:00:14]} 50. Kd2 {[%emt 0:00:34]} Bxd3 {[%emt 0:01:06]} 51. Rxd3 {[%emt 0:00:03]} f2 {[%emt 0:00:18]} 52. Rxa3 {[%emt 0:00:47]} f1=Q {[%emt 0:00:05]} 53. Re3 {[%emt 0:00:04]} Kg7 {[%emt 0:00:31]} 54. Re2 {[%emt 0:00:09]} Kg6 {[%emt 0:00:16]} 55. Ke3 {[%emt 0:00:06]} Kg5 {[%emt 0:00:37]} 56. Rf2 {[%emt 0:00:25]} Qc1+ {[%emt 0:00:24]} 57. Kf3 {[%emt 0:00:46]} Qc6+ {[%emt 0:00:03]} 58. Ke3 {[%emt 0:00:05]} f5 {[%emt 0:00:45]} 59. Rf4 {[%emt 0:01:53]} Qc1+ {[%emt 0:00:19]} 60. Kf2 {[%emt 0:00:30]} Qd2+ {[%emt 0:01:36]} 61. Kg1 {[%emt 0:00:25]} Qd1+ {[%emt 0:00:42]} 62. Kg2 {[%emt 0:00:17]} Qe2+ {[%emt 0:00:05]} 63. Kg1 {[%emt 0:00:14]} h5 {[%emt 0:00:53]} 64. h4+ {[%emt 0:00:13]} Kf6 {[%emt 0:00:03]} 65. Rf2 {[%emt 0:00:16]} Qe1+ {[%emt 0:00:12]} 66. Kg2 {[%emt 0:00:24]} Ke5 {[%emt 0:00:08]} 67. Rf4 {[%emt 0:00:21]} Qe3 {[%emt 0:00:50]} 68. Ra4 {[%emt 0:00:21]} Qe2+ {[%emt 0:00:29]} 69. Kh3 {[%emt 0:00:10]} Qd1 {[%emt 0:00:24]} 70. Ra2 {[%emt 0:00:37]} Qh1+ {[%emt 0:00:27]} 71. Rh2 {[%emt 0:00:03]} Qf1+ {[%emt 0:00:04]} 72. Rg2 {[%emt 0:00:02]} Ke4 {[%emt 0:00:06]} 73. Kh2 {[%emt 0:00:06]} Kf3 {[%emt 0:00:37]} 74. Ra2 {[%emt 0:00:07]} Qf2+ {[%emt 0:00:31]} 75. Rxf2+ {[%emt 0:00:05]} Kxf2 {[%emt 0:00:02]} 76. g4 {[%emt 0:01:01]} fxg4 {[%emt 0:00:05]} 77. Kh1 {[%emt 0:00:03]} Kg3 {[%emt 0:00:11]} 0-1

[Event "EYCC Girls U16 2021"]
[Site "Tornelo"]
[Date "2021.10.15"]
[Round "9.6"]
[White "Zabrzanska, Weronika"]
[Black "Shuqja, Klean"]
[Result "1/2-1/2"]
[ECO "C01"]
[WhiteElo "1892"]
[BlackElo "1877"]
[Annotator "NA"]
[PlyCount "54"]
[EventDate "2021.10.15"]
[EventType "swiss"]
[EventCountry "NET"]
[SourceTitle "playchess.com"]
[Source "ChessBase"]
[SourceQuality "1"]
[TimeControl "5400+30"]

1. e4 {[%emt 0:00:30]} e6 {[%emt 0:00:36]} 2. d4 {[%emt 0:00:06]} d5 {[%emt 0:00:03]} 3. exd5 {[%emt 0:00:09]} exd5 {[%emt 0:00:02]} 4. Nf3 {[%emt 0:00:05]} Bg4 {[%emt 0:01:07]} 5. Bd3 {[%emt 0:00:10]} Bd6 {[%emt 0:00:11]} 6. h3 {[%emt 0:00:06]} Bh5 {[%emt 0:13:16]} 7. O-O {[%emt 0:00:12]} Nc6 {[%emt 0:01:47]} 8. Re1+ {[%emt 0:02:55]} Nge7 {[%emt 0:00:14]} 9. c3 {[%emt 0:00:05]} Qd7 {[%emt 0:08:04]} 10. b4 {[%emt 0:00:07]} a6 {[%emt 0:02:11]} 11. a4 {[%emt 0:00:43]} f6 {[%emt 0:07:07]} 12. Nbd2 {[%emt 0:05:28]} O-O {[%emt 0:01:33]} 13. Nf1 {[%emt 0:03:04]} Bg6 {[%emt 0:01:18]} 14. Ne3 {[%emt 0:01:09]} Bxd3 {[%emt 0:04:35]} 15. Qxd3 {[%emt 0:00:05]} Bf4 {[%emt 0:01:07]} 16. Nf1 {[%emt 0:07:15]} Bxc1 {[%emt 0:01:30]} 17. Raxc1 {[%emt 0:02:28]} Nf5 {[%emt 0:01:49]} 18. Ne3 {[%emt 0:04:01]} Nxe3 {[%emt 0:04:44]} 19. Rxe3 {[%emt 0:00:21]} Ne7 {[%emt 0:10:41]} 20. Rce1 {[%emt 0:00:27]} Ng6 {[%emt 0:04:25]} (20... Nf5 $5 {[%cal Rf5e3]} 21. R3e2 Nd6 $11) 21. Qd1 {[%emt 0:02:06]} Rfe8 $11 {[%emt 0:08:17]} 22. Rxe8+ {[%emt 0:07:11]} Rxe8 {[%emt 0:00:06]} 23. Rxe8+ {[%emt 0:00:05]} Qxe8 {[%emt 0:00:03]} 24. Qe1 {[%emt 0:00:08]} Qd7 {[%emt 0:05:31]} 25. Qe2 {[%emt 0:04:14]} Nf4 {[%emt 0:01:58]} 26. Qe3 {[%emt 0:01:19]} Ne6 {[%emt 0:01:13]} 27. Nh4 {[%emt 0:01:10]} Kf7 {[%emt 0:03:57]} 1/2-1/2

[Event "EYCC Girls U16 2021"]
[Site "Tornelo"]
[Date "2021.10.15"]
[Round "9.7"]
[White "Hertlein, Irena"]
[Black "Mihelic, Vesna"]
[Result "1-0"]
[ECO "C60"]
[WhiteElo "1741"]
[BlackElo "1882"]
[Annotator "NA"]
[PlyCount "99"]
[EventDate "2021.10.15"]
[EventType "swiss"]
[EventCountry "NET"]
[SourceTitle "playchess.com"]
[Source "ChessBase"]
[SourceQuality "1"]
[TimeControl "5400+30"]

1. e4 {[%emt 0:00:30]} e5 {[%emt 0:00:38]} 2. Nf3 {[%emt 0:00:05]} Nc6 {[%emt 0:00:08]} 3. Bb5 {[%emt 0:00:04]} g6 {[%emt 0:00:22]} 4. d4 {[%emt 0:00:07]} exd4 {[%emt 0:00:08]} 5. Bg5 {[%emt 0:00:09]} Be7 {[%emt 0:00:08]} 6. Bxe7 {[%emt 0:00:04]} Qxe7 {[%emt 0:00:10]} 7. Bxc6 {[%emt 0:00:04]} dxc6 {[%emt 0:00:56]} 8. Qxd4 {[%emt 0:00:09]} Nf6 {[%emt 0:00:11]} 9. Nc3 {[%emt 0:00:11]} Bg4 {[%emt 0:00:10]} 10. Nd2 {[%emt 0:00:04]} O-O {[%emt 0:01:06]} 11. f3 {[%emt 0:00:36]} Rfd8 {[%emt 0:01:26]} 12. Qe3 {[%emt 0:00:39]} Be6 {[%emt 0:01:08]} 13. O-O-O {[%emt 0:01:14]} b5 {[%emt 0:03:17]} 14. g4 {[%emt 0:03:07]} b4 {[%emt 0:10:14]} 15. Na4 {[%emt 0:00:58]} Bxa2 {[%emt 0:03:29]} 16. Rhe1 {[%emt 0:04:41]} Be6 {[%emt 0:08:41]} 17. h4 {[%emt 0:02:16]} Nxg4 {[%emt 0:13:15]} 18. fxg4 {[%emt 0:00:46]} Bxg4 {[%emt 0:00:09]} 19. Nf3 {[%emt 0:01:33]} Qf6 {[%emt 0:14:54]} 20. Rxd8+ {[%emt 0:15:10]} Rxd8 {[%emt 0:00:10]} 21. Rf1 {[%emt 0:03:38]} Bxf3 {[%emt 0:09:46]} 22. Qxf3 {[%emt 0:02:00]} Qxf3 {[%emt 0:00:25]} 23. Rxf3 {[%emt 0:00:05]} Kg7 {[%emt 0:06:30]} 24. Nc5 {[%emt 0:03:09]} a5 {[%emt 0:04:40]} 25. b3 {[%emt 0:05:12]} Re8 {[%emt 0:01:06]} 26. Rf4 {[%emt 0:01:43]} Re5 {[%emt 0:04:52]} 27. Nb7 {[%emt 0:02:21]} f5 {[%emt 0:06:17]} 28. exf5 {[%emt 0:00:45]} gxf5 {[%emt 0:01:07]} 29. Nd8 {[%emt 0:03:47]} Kf6 {[%emt 0:02:31]} 30. Nxc6 {[%emt 0:01:32]} Rc5 {[%emt 0:01:06]} 31. Nd4 {[%emt 0:02:48]} Ke5 {[%emt 0:00:31]} 32. Ne2 {[%emt 0:00:15]} Rd5 {[%emt 0:00:57]} 33. Rc4 {[%emt 0:01:41]} c5 {[%emt 0:04:15]} 34. Nf4 {[%emt 0:04:35]} Rd4 {[%emt 0:01:18]} 35. Nd3+ {[%emt 0:00:26]} Ke4 {[%emt 0:00:57]} 36. Nxc5+ {[%emt 0:08:15]} Ke3 {[%emt 0:00:40]} 37. Rxd4 {[%emt 0:00:36]} Kxd4 {[%emt 0:00:07]} 38. Nb7 {[%emt 0:00:49]} Ke3 {[%emt 0:00:25]} 39. Kd1 {[%emt 0:02:43]} Kf2 {[%emt 0:00:22]} 40. Nxa5 {[%emt 0:00:58]} f4 {[%emt 0:00:16]} 41. Nc6 {[%emt 0:00:56]} f3 {[%emt 0:00:41]} 42. Nxb4 {[%emt 0:01:12]} Kg3 {[%emt 0:00:20]} 43. Nd3 {[%emt 0:01:14]} Kxh4 {[%emt 0:00:09]} 44. Ke1 {[%emt 0:02:23]} Kg3 {[%emt 0:01:19]} 45. b4 {[%emt 0:00:52]} h5 {[%emt 0:00:16]} 46. b5 {[%emt 0:00:31]} h4 {[%emt 0:00:11]} 47. b6 {[%emt 0:00:55]} h3 {[%emt 0:00:07]} 48. b7 {[%emt 0:00:07]} h2 {[%emt 0:00:19]} 49. b8=Q+ {[%emt 0:00:31]} Kh3 {[%emt 0:00:23]} 50. Nf2+ {[%emt 0:00:18]} 1-0

[Event "EYCC Girls U16 2021"]
[Site "Tornelo"]
[Date "2021.10.15"]
[Round "9.8"]
[White "Chuchukova, Stefani"]
[Black "Bashylina, Luisa"]
[Result "1-0"]
[ECO "D91"]
[WhiteElo "1698"]
[BlackElo "2127"]
[Annotator "ChessBase"]
[PlyCount "49"]
[EventDate "2021.10.15"]
[EventType "swiss"]
[EventCountry "NET"]
[SourceTitle "playchess.com"]
[Source "ChessBase"]
[SourceQuality "1"]
[TimeControl "5400+30"]

1. d4 {[%emt 0:00:30]} Nf6 {[%emt 0:00:39]} 2. Bg5 {[%emt 0:00:06]} g6 {[%emt 0:00:06]} 3. Nf3 {[%emt 0:00:30]} Bg7 {[%emt 0:00:04]} 4. c4 {[%emt 0:00:23]} d5 {[%emt 0:00:35]} 5. Nc3 {[%emt 0:01:03]} Ne4 {[%emt 0:00:35]} 6. Bh4 {[%emt 0:02:12]} Nxc3 {[%emt 0:01:06]} 7. bxc3 {[%emt 0:00:36]} dxc4 {[%emt 0:00:12]} 8. e4 {[%emt 0:00:13]} b5 {[%emt 0:00:52]} 9. a4 {[%emt 0:02:45]} c6 {[%emt 0:00:31]} 10. Be2 {[%emt 0:03:17]} O-O {[%emt 0:00:41]} 11. O-O {[%emt 0:03:27]} Bb7 {[%emt 0:02:30]} 12. Rb1 {[%emt 0:00:40]} Ba6 {[%emt 0:12:50]} 13. Qc1 {[%emt 0:03:53]} Qd7 {[%emt 0:10:25]} 14. Qa3 {[%emt 0:00:21]} e6 {[%emt 0:01:25]} 15. e5 {[%emt 0:01:16]} Bb7 {[%emt 0:07:26]} 16. Nd2 {[%emt 0:06:07]} Na6 {[%emt 0:08:54]} 17. Ne4 {[%emt 0:01:50]} Kh8 {[%emt 0:10:46]} 18. Nf6 {[%emt 0:07:14]} Qc7 {[%emt 0:00:41]} 19. f4 {[%emt 0:05:23]} Rab8 {[%emt 0:06:05]} 20. Bf3 {[%emt 0:07:58]} Bc8 {[%emt 0:05:18]} 21. Be4 {[%emt 0:01:52]} Qb6 {[%emt 0:05:29]} 22. Rf3 {[%emt 0:12:34]} b4 {[%emt 0:01:55]} 23. Qc1 {[%emt 0:01:04]} c5 {[%emt 0:01:57]} 24. Rh3 {[%emt 0:03:15]} cxd4 {[%emt 0:01:08]} 25. cxd4 {[%emt 0:01:51]} 1-0